fUST/lending_fUST_20250127
["ID","MTS","AMOUNT","RATE_DAILY","PERIOD"]
[350490643,1737923444246,-500.0,0.00016438,2]
[350490644,1737923444255,-500.81258492,0.00016438,2]
[350490645,1737923444265,-500.0,0.00016438,2]
[350490646,1737923444274,-2723.31361879,0.00016438,2]
[350490647,1737923444530,-521.39638121,0.00016438,2]
[350490648,1737923444539,-500.0,0.00016438,2]
[350490649,1737923444548,-500.0,0.00016438,2]
[350490650,1737923444557,-508.11,0.00016438,2]
[350490651,1737923444566,-508.11,0.00016438,2]
[350490652,1737923444575,-508.11,0.00016438,2]
[350490653,1737923444584,-508.11,0.00016438,2]
[350490654,1737923444593,-508.11,0.00016438,2]
[350490655,1737923444603,-508.11,0.00016438,2]
[350490656,1737923444612,-500.0,0.00016438,2]
[350490657,1737923444624,-508.11,0.00016438,2]
[350490658,1737923444633,-508.11,0.00016438,2]
[350490659,1737923444642,-508.11,0.00016438,2]
[350490660,1737923444651,-508.11,0.00016438,2]
[350490661,1737923444662,-500.0,0.00016438,2]
[350490662,1737923444671,-500.0,0.00016438,2]
[350490663,1737923444680,-501.84965997,0.00016438,2]
[350490664,1737923444689,-500.0,0.00016438,2]
[350490665,1737923444698,-500.0,0.00016438,2]
[350490666,1737923444707,-500.0,0.00016438,2]
[350490667,1737923444716,-544.45,0.00016438,2]
[350490668,1737923444725,-500.0,0.00016438,2]
[350490669,1737923444735,-500.0,0.00016438,2]
[350490670,1737923444744,-500.0,0.00016438,2]
[350490671,1737923444753,-500.0,0.00016438,2]
[350490672,1737923444763,-500.0,0.00016438,2]
[350490673,1737923444772,-4810.98,0.00016438,2]
[350490674,1737923444781,-1480.02316409,0.00016438,2]
[350490675,1737923444793,-3330.95683591,0.00016438,2]
[350490676,1737923444803,-4810.98,0.00016438,2]
[350490677,1737923444813,-4810.98,0.00016438,2]
[350490678,1737923444822,-4810.98,0.00016438,2]
[350490679,1737923444831,-4810.98,0.00016438,2]
[350490680,1737923444841,-500.0,0.00016438,2]
[350490681,1737923444850,-4810.98,0.00016438,2]
[350490682,1737923444859,-4810.98,0.00016438,2]
[350490683,1737923444873,-4810.98,0.00016438,2]
[350490684,1737923444882,-4810.98,0.00016438,2]
[350490685,1737923444892,-156.10317769,0.00016438,2]
[350490686,1737923444904,-4654.87682231,0.00016438,2]
[350490687,1737923444914,-501.77749836,0.00016438,2]
[350490688,1737923444924,-4810.98,0.00016438,2]
[350490689,1737923444936,-4810.98,0.00016438,2]
[350490690,1737923444946,-4810.98,0.00016438,2]
[350490691,1737923444955,-501.24394467,0.00016438,2]
[350490692,1737923444964,-4810.98,0.00016438,2]
[350490693,1737923444973,-4810.98,0.00016438,2]
[350490694,1737923444982,-45.60200972,0.00016438,2]
[350490695,1737923444993,-4765.37799028,0.00016438,2]
[350490696,1737923445003,-4193.47378974,0.00016438,2]
[350490697,1737923445014,-617.50621026,0.00016438,2]
[350490698,1737923445024,-4810.98,0.00016438,2]
[350490699,1737923445037,-500.0,0.00016438,2]
[350490700,1737923445046,-1129.94484863,0.00016438,2]
[350490701,1737923445059,-3681.03515137,0.00016438,2]
[350490702,1737923445068,-754.07026301,0.00016438,2]
[350490703,1737923445080,-395.0,0.00016438,2]
[350490704,1737923445092,-3661.90973699,0.00016438,2]
[350490705,1737923445102,-1296.9991033,0.00016438,2]
[350490706,1737923445113,-2707.85288775,0.00016438,2]
[350490707,1737923445161,-535.98597495,0.00016328,2]
[350490708,1737923445171,-806.12800895,0.00016438,2]
[350490709,1737923445180,-1290.11319032,0.00016438,2]
[350490710,1737923445192,-1609.96346841,0.00016438,2]
[350490711,1737923445204,-1842.15314621,0.00016438,2]
[350490712,1737923445216,-68.75019506,0.00016438,2]
[350490713,1737923445226,-4811.08858758,0.00016438,2]
[350490714,1737923445235,-361.55000336,0.00016438,2]
[350490715,1737923445246,-286.27335422,0.00016438,2]
[350490716,1737923445256,-500.0,0.00016438,2]
[350490717,1737923445266,-500.0,0.00016438,2]
[350490718,1737923445275,-338.40787608,0.00016438,2]
[350490720,1737923445337,-535.98597495,0.00016331,2]
[350490721,1737923445346,-535.98597495,0.00016335,2]
[350490722,1737923445356,-113.90727592,0.00016438,2]
[350490723,1737923445367,-47.684848,0.00016438,2]
[350490724,1737923445377,-296.98325316,0.00016438,2]
[350490726,1737923445389,-203.93579835,0.00016438,2]
[350490727,1737923445398,-500.0,0.00016438,2]
[350490728,1737923445409,-628.03035049,0.00016438,2]
[350490729,1737923445418,-500.0,0.00016438,2]
[350490730,1737923445428,-500.0,0.00016438,2]
[350490731,1737923445437,-500.0,0.00016438,2]
[350490732,1737923445447,-1491.84,0.00016438,2]
[350490733,1737923445456,-500.0,0.00016438,2]
[350490734,1737923445467,-500.0,0.00016438,2]
[350490735,1737923445476,-500.0,0.00016438,2]
[350490736,1737923445485,-500.0,0.00016438,2]
[350490737,1737923445494,-500.0,0.00016438,2]
[350490738,1737923445503,-500.0,0.00016438,2]
[350490739,1737923445512,-500.0,0.00016438,2]
[350490740,1737923445521,-500.0,0.00016438,2]
[350490741,1737923445530,-500.0,0.00016438,2]
[350490742,1737923445540,-501.85260434,0.00016438,2]
[350490743,1737923445548,-500.0,0.00016438,2]
[350490744,1737923445558,-500.0,0.00016438,2]
[350490745,1737923445567,-151.0,0.00016438,2]
[350490746,1737923445576,-501.12274605,0.00016438,2]
[350490747,1737923445585,-500.0,0.00016438,2]
[350490748,1737923445594,-285.99368593,0.00016438,2]
[350490749,1737923445606,-214.00631407,0.00016438,2]
[350490750,1737923445615,-501.54511715,0.00016438,2]
[350490751,1737923445624,-157.45953362,0.00016438,2]
[350490752,1737923445633,-471.66174564,0.00016438,2]
[350490753,1737923445642,-709.32,0.00016438,2]
[350490754,1737923445651,-326.66971618,0.00016438,2]
[350490756,1737923445661,-500.49182704,0.00016438,2]
[350490758,1737923445670,-500.0,0.00016438,2]
[350490760,1737923445679,-500.0,0.00016438,2]
[350490761,1737923445688,-500.93019401,0.00016438,2]
[350490762,1737923445698,-500.0,0.00016438,2]
[350490763,1737923445707,-500.0,0.00016438,2]
[350490764,1737923445716,-500.0,0.00016438,2]
[350490765,1737923445725,-503.01978408,0.00016438,2]
[350490766,1737923445735,-312.64409395,0.00016438,2]
[350490767,1737923445744,-500.0,0.00016438,2]
[350490768,1737923445753,-500.0,0.00016438,2]
[350490769,1737923445762,-500.0,0.00016438,2]
[350490770,1737923445772,-500.0,0.00016438,2]
[350490771,1737923445781,-500.0,0.00016438,2]
[350490772,1737923445791,-500.0,0.00016438,2]
[350490773,1737923445801,-500.0,0.00016438,2]
[350490774,1737923445812,-473.05925283,0.00016438,2]
[350490775,1737923445823,-500.0,0.00016438,2]
[350490776,1737923445832,-500.0,0.00016438,2]
[350490777,1737923445842,-500.0,0.00016438,2]
[350490778,1737923445851,-500.0,0.00016438,2]
[350490779,1737923445861,-500.0,0.00016438,2]
[350490780,1737923445870,-500.0,0.00016438,2]
[350490781,1737923445879,-315.29167769,0.00016438,2]
[350490782,1737923445888,-500.0,0.00016438,2]
[350490783,1737923445897,-500.0,0.00016438,2]
[350490784,1737923445906,-500.0,0.00016438,2]
[350490785,1737923445918,-500.0,0.00016438,2]
[350490786,1737923445928,-500.0,0.00016438,2]
[350490787,1737923445941,-500.0,0.00016438,2]
[350490788,1737923445950,-500.0,0.00016438,2]
[350490789,1737923445959,-500.0,0.00016438,2]
[350490790,1737923445969,-500.0,0.00016438,2]
[350490791,1737923445978,-500.0,0.00016438,2]
[350490792,1737923445988,-500.0,0.00016438,2]
[350490793,1737923445997,-500.0,0.00016438,2]
[350490794,1737923446006,-500.0,0.00016438,2]
[350490795,1737923446015,-500.0,0.00016438,2]
[350490796,1737923446024,-500.0,0.00016438,2]
[350490797,1737923446033,-500.0,0.00016438,2]
[350490798,1737923446043,-500.0,0.00016438,2]
[350490800,1737923446052,-500.0,0.00016438,2]
[350490801,1737923446061,-500.0,0.00016438,2]
[350490802,1737923446070,-500.0,0.00016438,2]
[350490803,1737923446080,-500.0,0.00016438,2]
[350490804,1737923446089,-520.57270049,0.00016438,2]
[350490805,1737923446098,-500.0,0.00016438,2]
[350490806,1737923446108,-500.0,0.00016438,2]
[350490807,1737923446117,-151.0,0.00016438,2]
[350490808,1737923446126,-104.88131759,0.00016438,2]
[350490809,1737923446148,-46.11868241,0.00016438,2]
[350490810,1737923446158,-151.0,0.00016438,2]
[350490811,1737923446168,-151.0,0.00016438,2]
[350490812,1737923446177,-241.36,0.0001647,2]
[350490813,1737923446186,-500.0,0.00016472,2]
[350490814,1737923446195,-500.0,0.00016473,2]
[350490815,1737923446204,-512.35044576,0.00016473,2]
[350490816,1737923446213,-500.0,0.00016473,2]
[350490817,1737923446222,-500.0,0.00016473,2]
[350490818,1737923446232,-223.74084542,0.00016473,2]
[350490819,1737923446241,-500.0,0.00016473,2]
[350490820,1737923446250,-501.08916729,0.00016473,2]
[350490821,1737923446259,-500.0,0.00016473,2]
[350490822,1737923446268,-500.0,0.00016473,2]
[350490823,1737923446277,-284.38911509,0.00016473,2]
[350490824,1737923446286,-500.0,0.00016473,2]
[350490825,1737923446295,-327.81895719,0.00016473,2]
[350490826,1737923446360,-535.98597495,0.00016338,2]
[350490827,1737923446369,-172.18104281,0.00016473,2]
[350490828,1737923446378,-259.57526451,0.00016473,2]
[350490829,1737923446388,-500.0,0.00016473,2]
[350490830,1737923446397,-152.37091838,0.00016473,2]
[350490831,1737923446406,-500.0,0.00016473,2]
[350490832,1737923446416,-368.33685199,0.00016473,2]
[350490833,1737923446428,-32.60007785,0.00016473,2]
[350490834,1737923446438,-151.0,0.00016473,2]
[350490835,1737923446448,-151.0,0.00016473,2]
[350490836,1737923446458,-151.0,0.00016473,2]
[350490837,1737923446467,-12588.75,0.000165,2]
[350490838,1737923446476,-303.4983749,0.000165,2]
[350490839,1737923446486,-500.0,0.00016574,2]
[350490840,1737923446495,-275.54058267,0.00016574,2]
[350490841,1737923446504,-500.0,0.00016575,2]
[350490842,1737923446513,-500.0,0.00016575,2]
[350490843,1737923446523,-500.0,0.00016575,2]
[350490844,1737923446532,-88.83611458,0.00016575,2]
[350490845,1737923446543,-411.16388542,0.00016575,2]
[350490846,1737923446554,-245.21,0.00016575,2]
[350490847,1737923446564,-151.0,0.00016575,2]
[350490848,1737923446574,-188.3,0.00016575,2]
[350490849,1737923446583,-481.3490582,0.00016575,2]
[350490850,1737923446592,-500.0,0.00016575,2]
[350490851,1737923446602,-500.0,0.00016575,2]
[350490852,1737923446611,-227.71359275,0.00016575,2]
[350490853,1737923446625,-334.05640725,0.00016575,2]
[350490854,1737923446635,-326.61939569,0.00016575,2]
[350490855,1737923446646,-345.45,0.00016575,2]
[350490856,1737923446655,-466.65300637,0.00016575,2]
[350490857,1737923446666,-500.0,0.00016575,2]
[350490858,1737923446675,-500.0,0.00016575,2]
[350490859,1737923446683,-500.0,0.00016575,2]
[350490860,1737923446692,-290.61,0.00016575,2]
[350490861,1737923446702,-500.0,0.00016575,2]
[350490862,1737923446711,-502.08279943,0.00016575,2]
[350490863,1737923446721,-500.0,0.00016575,2]
[350490864,1737923446732,-500.0,0.00016575,2]
[350490865,1737923446743,-500.0,0.00016575,2]
[350490866,1737923446752,-500.0,0.00016575,2]
[350490867,1737923446762,-500.0,0.00016575,2]
[350490868,1737923446773,-200.30241972,0.00016575,2]
[350490869,1737923446783,-500.0,0.00016575,2]
[350490870,1737923446793,-500.0,0.00016575,2]
[350490871,1737923446802,-500.0,0.00016575,2]
[350490872,1737923446905,-500.0,0.00016575,2]
[350490873,1737923446917,-500.0,0.00016575,2]
[350490874,1737923446927,-500.0,0.00016575,2]
[350490875,1737923446939,-500.0,0.00016575,2]
[350490876,1737923446949,-500.0,0.00016575,2]
[350490877,1737923446959,-500.55170463,0.00016575,2]
[350490878,1737923446968,-500.0,0.00016575,2]
[350490879,1737923446978,-500.0,0.00016575,2]
[350490880,1737923446987,-988.24,0.00016575,2]
[350490881,1737923446996,-500.72729594,0.00016575,2]
[350490882,1737923447005,-500.80606122,0.00016575,2]
[350490883,1737923447015,-500.0,0.00016575,2]
[350490884,1737923447024,-503.35757614,0.00016575,2]
[350490885,1737923447033,-500.0,0.00016575,2]
[350490886,1737923447042,-500.0,0.00016575,2]
[350490887,1737923447052,-500.0,0.00016575,2]
[350490888,1737923447061,-500.0,0.00016575,2]
[350490889,1737923447070,-500.0,0.00016575,2]
[350490890,1737923447079,-500.0,0.00016575,2]
[350490891,1737923447088,-151.84,0.00016575,2]
[350490892,1737923447097,-500.0,0.00016575,2]
[350490893,1737923447106,-500.0,0.00016575,2]
[350490894,1737923447115,-500.0,0.00016575,2]
[350490895,1737923447126,-159.028515,0.00016575,2]
[350490896,1737923447135,-156.07,0.00016575,2]
[350490897,1737923447145,-500.0,0.00016575,2]
[350490898,1737923447154,-500.0,0.00016575,2]
[350490899,1737923447164,-1000.0,0.00016575,2]
[350490900,1737923447174,-500.0,0.00016575,2]
[350490901,1737923447183,-515.79,0.00016575,2]
[350490902,1737923447193,-500.0,0.00016575,2]
[350490903,1737923447203,-500.0,0.00016575,2]
[350490904,1737923447212,-500.0,0.00016575,2]
[350490905,1737923447221,-500.0,0.00016575,2]
[350490906,1737923447231,-968.06,0.00016575,2]
[350490907,1737923447240,-500.0,0.00016575,2]
[350490908,1737923447249,-214.58,0.00016575,2]
[350490909,1737923447258,-3244.71,0.00016575,2]
[350490910,1737923447268,-338.81,0.00016575,2]
[350490911,1737923447277,-252.47,0.00016575,2]
[350490912,1737923447286,-490.64,0.00016575,2]
[350490913,1737923447296,-500.0,0.00016575,2]
[350490914,1737923447305,-500.0,0.00016575,2]
[350490915,1737923447315,-1491.84,0.00016575,2]
[350490916,1737923447324,-500.0,0.00016575,2]
[350490917,1737923447333,-709.32,0.00016575,2]
[350490918,1737923447342,-500.0,0.00016575,2]
[350490919,1737923447352,-500.0,0.00016575,2]
[350490920,1737923447361,-500.0,0.00016575,2]
[350490921,1737923447370,-331.1,0.00016575,2]
[350490922,1737923447379,-508.11,0.00016711,2]
[350490923,1737923447389,-151.0,0.00016712,2]
[350490924,1737923447398,-151.0,0.00016712,2]
[350490925,1737923447407,-151.0,0.00016712,2]
[350490926,1737923447417,-183.68,0.00016712,2]
[350490927,1737923447426,-391.95,0.00016712,2]
[350490928,1737923447435,-185.39,0.00016712,2]
[350490929,1737923447445,-163.784536,0.00016712,2]
[350490930,1737923447454,-500.0,0.00016712,2]
[350490931,1737923447463,-310.32,0.00016712,2]
[350490932,1737923447472,-988.24,0.00016712,2]
[350490933,1737923447481,-500.0,0.00016712,2]
[350490934,1737923447490,-500.0,0.00016712,2]
[350490935,1737923447499,-554.73207523,0.00016712,2]
[350490936,1737923447509,-500.0,0.00016712,2]
[350490937,1737923447518,-500.0,0.00016712,2]
[350490938,1737923447527,-500.0,0.00016712,2]
[350490939,1737923447537,-968.06,0.00016712,2]
[350490940,1737923447546,-500.0,0.00016712,2]
[350490941,1737923447556,-2113.48064297,0.00016712,2]
[350490942,1737923447569,-406.01799035,0.00016712,2]
[350490943,1737923447580,-455.4460002,0.00016712,2]
[350490944,1737923447592,-269.76536648,0.00016712,2]
[350490945,1737923447602,-64.82712852,0.00016712,2]
[350490946,1737923548682,201.6004606,0.00013699,2]
[350490948,1737923639905,460.29982699,0.00014951,2]
[350490950,1737923743806,275.259542,0.00013973,2]
[350490969,1737924577750,261.496564,0.00013973,2]
[350491013,1737924632294,-2005.29973004,0.00015102,2]
[350491014,1737924632303,-662.9103278,0.0001548,2]
[350491015,1737924632312,-260.86721,0.00015549,2]
[350491016,1737924632322,-500.0,0.00015972,2]
[350491017,1737924632331,-850.47996256,0.00016338,2]
[350491018,1737924632340,-300.0,0.00016437,2]
[350491019,1737924632350,-500.0,0.00016438,2]
[350491021,1737924632359,-500.0,0.00016438,2]
[350491022,1737924632368,-500.0,0.00016438,2]
[350491023,1737924632377,-500.0,0.00016438,2]
[350491025,1737924632387,-506.45293214,0.00016438,2]
[350491026,1737924632396,-500.0,0.00016438,2]
[350491027,1737924632405,-500.0,0.00016438,2]
[350491028,1737924632414,-500.0,0.00016438,2]
[350491029,1737924632423,-514.05433313,0.00016438,2]
[350491030,1737924632433,-500.0,0.00016438,2]
[350491031,1737924632442,-500.0,0.00016438,2]
[350491032,1737924632452,-500.0,0.00016438,2]
[350491033,1737924632462,-500.0,0.00016438,2]
[350491034,1737924632471,-500.0,0.00016438,2]
[350491035,1737924632480,-537.7163297,0.00016438,2]
[350491036,1737924632490,-500.0,0.00016438,2]
[350491037,1737924632499,-573.48053073,0.00016438,2]
[350491038,1737924632508,-500.0,0.00016438,2]
[350491039,1737924632518,-500.0,0.00016438,2]
[350491040,1737924632527,-506.82576773,0.00016438,2]
[350491041,1737924632536,-500.0,0.00016438,2]
[350491042,1737924632546,-500.0,0.00016438,2]
[350491043,1737924632555,-500.0,0.00016438,2]
[350491044,1737924632564,-500.0,0.00016438,2]
[350491045,1737924632573,-500.0,0.00016438,2]
[350491046,1737924632583,-500.0,0.00016438,2]
[350491047,1737924632592,-500.0,0.00016438,2]
[350491048,1737924632602,-497.37126,0.00016438,2]
[350491049,1737924632611,-500.0,0.00016438,2]
[350491050,1737924632621,-1000.0,0.00016438,2]
[350491051,1737924632631,-500.0,0.00016438,2]
[350491052,1737924632640,-500.0,0.00016438,2]
[350491053,1737924632649,-500.0,0.00016438,2]
[350491054,1737924632661,-500.0,0.00016438,2]
[350491055,1737924632671,-500.0,0.00016438,2]
[350491056,1737924632680,-500.0,0.00016438,2]
[350491057,1737924632690,-619.61746308,0.00016438,2]
[350491058,1737924632699,-500.0,0.00016438,2]
[350491059,1737924632708,-500.0,0.00016438,2]
[350491060,1737924632717,-513.91629401,0.00016438,2]
[350491061,1737924632728,-500.0,0.00016438,2]
[350491062,1737924632737,-500.0,0.00016438,2]
[350491063,1737924632748,-500.0,0.00016438,2]
[350491064,1737924632759,-500.0,0.00016438,2]
[350491065,1737924632768,-500.0,0.00016438,2]
[350491066,1737924632777,-500.0,0.00016438,2]
[350491067,1737924632786,-500.0,0.00016438,2]
[350491068,1737924632795,-500.0,0.00016438,2]
[350491069,1737924632806,-500.0,0.00016438,2]
[350491070,1737924632815,-500.0,0.00016438,2]
[350491071,1737924632824,-500.0,0.00016438,2]
[350491072,1737924632834,-500.0,0.00016438,2]
[350491073,1737924632843,-500.0,0.00016438,2]
[350491074,1737924632852,-500.0,0.00016438,2]
[350491075,1737924632861,-605.59592461,0.00016438,2]
[350491076,1737924632871,-523.49635252,0.00016438,2]
[350491077,1737924632883,-500.0,0.00016438,2]
[350491078,1737924632893,-500.0,0.00016438,2]
[350491079,1737924632901,-500.0,0.00016438,2]
[350491080,1737924632911,-500.0,0.00016438,2]
[350491081,1737924632919,-500.0,0.00016438,2]
[350491082,1737924632929,-500.0,0.00016438,2]
[350491083,1737924632938,-500.0,0.00016438,2]
[350491084,1737924632946,-500.0,0.00016438,2]
[350491085,1737924632956,-500.0,0.00016438,2]
[350491086,1737924632965,-500.0,0.00016438,2]
[350491087,1737924632974,-847.05,0.00016438,2]
[350491088,1737924632983,-500.0,0.00016438,2]
[350491089,1737924632992,-502.3444767,0.00016438,2]
[350491090,1737924633001,-500.0,0.00016438,2]
[350491091,1737924633010,-500.0,0.00016438,2]
[350491092,1737924633020,-500.0,0.00016438,2]
[350491093,1737924633029,-2839.12,0.00016438,2]
[350491094,1737924633038,-500.0,0.00016438,2]
[350491095,1737924633047,-500.0,0.00016438,2]
[350491096,1737924633057,-500.0,0.00016438,2]
[350491097,1737924633066,-500.0,0.00016438,2]
[350491098,1737924633076,-500.0,0.00016438,2]
[350491099,1737924633085,-500.0,0.00016438,2]
[350491100,1737924633094,-500.0,0.00016438,2]
[350491101,1737924633105,-500.0,0.00016438,2]
[350491102,1737924633114,-500.0,0.00016438,2]
[350491103,1737924633124,-500.0,0.00016438,2]
[350491104,1737924633133,-235.70502074,0.00016438,2]
[350491105,1737924633146,-264.29497926,0.00016438,2]
[350491106,1737924633155,-500.0,0.00016438,2]
[350491107,1737924633164,-500.0,0.00016438,2]
[350491108,1737924633174,-500.0,0.00016438,2]
[350491109,1737924633183,-542.99299767,0.00016438,2]
[350491110,1737924633192,-500.0,0.00016438,2]
[350491111,1737924633202,-704.12,0.00016438,2]
[350491112,1737924633211,-500.0,0.00016438,2]
[350491113,1737924633220,-507.28372018,0.00016438,2]
[350491114,1737924633230,-235.4992661,0.00016438,2]
[350491115,1737924633241,-263.0,0.00016438,2]
[350491142,1737924638169,-1.5007339,0.00016438,2]
[350491144,1737924638178,-511.67654682,0.00016438,2]
[350491146,1737924638188,-500.0,0.00016438,2]
[350491148,1737924638198,-500.0,0.00016438,2]
[350491150,1737924638207,-484.96131633,0.00016438,2]
[350491151,1737924638216,-500.0,0.00016438,2]
[350491152,1737924638225,-345.24831355,0.00016438,2]
[350491153,1737924638234,-500.0,0.00016438,2]
[350491154,1737924638243,-500.0,0.00016438,2]
[350491155,1737924638253,-500.0,0.00016438,2]
[350491156,1737924638262,-506.59287732,0.00016438,2]
[350491157,1737924638271,-500.0,0.00016438,2]
[350491158,1737924638281,-500.0,0.00016438,2]
[350491159,1737924638292,-500.0,0.00016438,2]
[350491160,1737924638303,-500.0,0.00016438,2]
[350491161,1737924638312,-200.0,0.00016438,2]
[350491162,1737924638322,-500.0,0.00016438,2]
[350491163,1737924638332,-321.00565247,0.00016438,2]
[350491164,1737924638341,-500.0,0.00016438,2]
[350491165,1737924638350,-1435.47,0.00016438,2]
[350491166,1737924638360,-500.0,0.00016438,2]
[350491167,1737924638369,-500.0,0.00016438,2]
[350491168,1737924638379,-500.0,0.00016438,2]
[350491169,1737924638388,-428.33,0.00016438,2]
[350491170,1737924638398,-879.27,0.00016438,2]
[350491171,1737924638407,-500.0,0.00016438,2]
[350491172,1737924638417,-500.0,0.00016438,2]
[350491173,1737924638426,-500.0,0.00016438,2]
[350491174,1737924638435,-530.78,0.00016438,2]
[350491175,1737924638444,-448.8,0.00016438,2]
[350491176,1737924638454,-500.0,0.00016438,2]
[350491177,1737924638465,-500.0,0.00016438,2]
[350491178,1737924638474,-500.0,0.00016438,2]
[350491179,1737924638484,-334.58293153,0.00016438,2]
[350491180,1737924638494,-602.86287148,0.00016438,2]
[350491181,1737924638506,-2720.83,0.00016438,2]
[350491182,1737924638515,-500.0,0.00016438,2]
[350491183,1737924638525,-244.748,0.0001647,2]
[350491184,1737924638534,-154.2803338,0.000165,2]
[350491185,1737924638543,-447.6869259,0.000165,2]
[350491186,1737924638553,-215.3965244,0.000165,2]
[350491187,1737924638562,-154.2803338,0.000165,2]
[350491188,1737924638571,-215.3965244,0.000165,2]
[350491189,1737924638580,-354.1278896,0.000165,2]
[350491190,1737924638589,-154.2803338,0.000165,2]
[350491191,1737924638598,-215.3965244,0.000165,2]
[350491192,1737924638608,-500.0,0.00016574,2]
[350491193,1737924638617,-500.0,0.00016575,2]
[350491194,1737924638626,-500.0,0.00016575,2]
[350491195,1737924638635,-501.79114185,0.00016575,2]
[350491196,1737924638644,-53.11222763,0.00016575,2]
[350491197,1737924638656,-312.67526972,0.00016575,2]
[350491198,1737924638666,-500.0,0.00016575,2]
[350491199,1737924638675,-847.05,0.00016575,2]
[350491200,1737924638684,-340.27473028,0.00016575,2]
[350491213,1737924640237,-363.84526972,0.00016575,2]
[350491214,1737924640247,-500.0,0.00016575,2]
[350491215,1737924640256,-500.0,0.00016575,2]
[350491216,1737924640265,-1435.47,0.00016575,2]
[350491217,1737924640275,-500.0,0.00016575,2]
[350491218,1737924640284,-879.27,0.00016575,2]
[350491219,1737924640293,-500.0,0.00016575,2]
[350491220,1737924640303,-500.0,0.00016575,2]
[350491221,1737924640314,-110.47349522,0.00016575,2]
[350491222,1737924640326,-389.52650478,0.00016575,2]
[350491223,1737924640337,-500.0,0.00016575,2]
[350491224,1737924640347,-500.0,0.00016575,2]
[350491225,1737924640357,-2184.37098707,0.00016575,2]
[350491226,1737924640368,-437.00618396,0.00016575,2]
[350491227,1737924640385,-99.45282897,0.00016575,2]
[350491228,1737924640395,-354.1278896,0.000166,2]
[350491229,1737924640404,-86.71024113,0.000166,2]
[350491230,1737924640415,-128.68628327,0.000166,2]
[350491231,1737924640425,-837.24817292,0.000167,2]
[350491232,1737924640434,-354.0163353,0.000167,2]
[350491233,1737924640444,-500.0,0.0001671,2]
[350491234,1737924640454,-500.0,0.0001671,2]
[350491235,1737924640464,-500.0,0.00016711,2]
[350491236,1737924640473,-407.22630946,0.00016712,2]
[350491237,1737924640483,-847.05,0.00016712,2]
[350491238,1737924640492,-704.12,0.00016712,2]
[350491239,1737924640502,-500.0,0.00016712,2]
[350491240,1737924640512,-500.0,0.00016712,2]
[350491241,1737924640521,-1435.47,0.00016712,2]
[350491242,1737924640531,-500.0,0.00016712,2]
[350491243,1737924640540,-879.27,0.00016712,2]
[350491244,1737924640550,-500.0,0.00016712,2]
[350491245,1737924640559,-500.0,0.00016712,2]
[350491246,1737924640568,-500.0,0.00016712,2]
[350491247,1737924640578,-500.0,0.00016712,2]
[350491248,1737924640587,-500.0,0.00016712,2]
[350491249,1737924640596,-2720.83,0.00016712,2]
[350491250,1737924640605,-500.0,0.00016773,2]
[350491251,1737924640614,-196.84734716,0.00016773,2]
[350491252,1737924640623,-502.75,0.00016848,2]
[350491253,1737924640633,-847.05,0.00016849,2]
[350491254,1737924640642,-704.12,0.00016849,2]
[350491255,1737924640652,-500.0,0.00016849,2]